{"text_format":"3","workbook":"xlsx","n_sheets":2,"sheets":["Fakturamall","Moms"],"read":"whole","date_system":"1900"}

{"sheet":"Fakturamall","index":0,"n_rows":67,"n_cols":9,"rows_kept":67,"merged":[[3,8,3,9]]}
[]
[]
[null,null,"Mitt företag AB",{"$nulls":4},"FAKTURA"]
[null,null,{"$f":"C73 & \", \" & C74","v":", "}]
[]
[]
[null,null,"Fakturanummer","0001",{"$nulls":3},"Mottagare"]
[null,null,"Kundnummer",1,{"$nulls":3},"Ert företag AB"]
[null,null,"Fakturadatum",{"$f":"TODAY()","v":"2018-04-20"},{"$nulls":3},"Lisa Svenssson"]
[null,null,"Förfallodag",{"$f":"D9+30","v":"2018-05-20"},{"$nulls":3},"Storgatan 123"]
[null,null,"Dröjsmålsränta",0.08,{"$nulls":3},"100 00 Stockholm"]
[null,null,"Betalningsvillkor","30 dagar"]
[null,null,"Bankgironummer","111-22222"]
[null,null,"Er referens","Lisa Svensson"]
[null,null,"Vår referens","Erik Eriksson"]
[]
[]
[]
[]
[]
[null,null,"Benämning","Antal","A-pris (exkl moms)","Moms","Moms (kr)",null,"Belopp"]
[null,null,"Tulpaner",15,8,{"v":0,"d":"0%"},{"$f":"IF(ISBLANK(F22),\"\",IF(D22*E22*F22>0,D22*E22*F22,0))","v":{"v":0,"d":"0.00"}},null,{"$f":"IF(SUM(Tabell1[[#This Row],[Kolumn2]]*Tabell1[[#This Row],[Kolumn3]],Tabell1[[#This Row],[Kolumn5]])>0,SUM(Tabell1[[#This Row],[Kolumn2]]*Tabell1[[#This Row],[Kolumn3]],Tabell1[[#This Row],[Kolumn5]]),\"\")","v":{"v":120,"d":"120.00"}}]
[null,null,"Pelargoner",10,25,{"v":0.25,"d":"25%"},{"v":62.5,"d":"62.50"},null,{"$f":"IF(SUM(Tabell1[[#This Row],[Kolumn2]]*Tabell1[[#This Row],[Kolumn3]],Tabell1[[#This Row],[Kolumn5]])>0,SUM(Tabell1[[#This Row],[Kolumn2]]*Tabell1[[#This Row],[Kolumn3]],Tabell1[[#This Row],[Kolumn5]]),\"\")","v":{"v":312.5,"d":"312.50"}}]
[null,null,"Rosor",5,99,{"v":0.25,"d":"25%"},123.75,null,{"$f":"IF(SUM(Tabell1[[#This Row],[Kolumn2]]*Tabell1[[#This Row],[Kolumn3]],Tabell1[[#This Row],[Kolumn5]])>0,SUM(Tabell1[[#This Row],[Kolumn2]]*Tabell1[[#This Row],[Kolumn3]],Tabell1[[#This Row],[Kolumn5]]),\"\")","v":618.75}]
[{"$nulls":6},"",null,{"$f":"IF(SUM(Tabell1[[#This Row],[Kolumn2]]*Tabell1[[#This Row],[Kolumn3]],Tabell1[[#This Row],[Kolumn5]])>0,SUM(Tabell1[[#This Row],[Kolumn2]]*Tabell1[[#This Row],[Kolumn3]],Tabell1[[#This Row],[Kolumn5]]),\"\")","v":""}]
[{"$nulls":6},"",null,{"$f":"IF(SUM(Tabell1[[#This Row],[Kolumn2]]*Tabell1[[#This Row],[Kolumn3]],Tabell1[[#This Row],[Kolumn5]])>0,SUM(Tabell1[[#This Row],[Kolumn2]]*Tabell1[[#This Row],[Kolumn3]],Tabell1[[#This Row],[Kolumn5]]),\"\")","v":""}]
[{"$nulls":6},"",null,{"$f":"IF(SUM(Tabell1[[#This Row],[Kolumn2]]*Tabell1[[#This Row],[Kolumn3]],Tabell1[[#This Row],[Kolumn5]])>0,SUM(Tabell1[[#This Row],[Kolumn2]]*Tabell1[[#This Row],[Kolumn3]],Tabell1[[#This Row],[Kolumn5]]),\"\")","v":""}]
[{"$nulls":6},"",null,{"$f":"IF(SUM(Tabell1[[#This Row],[Kolumn2]]*Tabell1[[#This Row],[Kolumn3]],Tabell1[[#This Row],[Kolumn5]])>0,SUM(Tabell1[[#This Row],[Kolumn2]]*Tabell1[[#This Row],[Kolumn3]],Tabell1[[#This Row],[Kolumn5]]),\"\")","v":""}]
[{"$nulls":6},"",null,{"$f":"IF(SUM(Tabell1[[#This Row],[Kolumn2]]*Tabell1[[#This Row],[Kolumn3]],Tabell1[[#This Row],[Kolumn5]])>0,SUM(Tabell1[[#This Row],[Kolumn2]]*Tabell1[[#This Row],[Kolumn3]],Tabell1[[#This Row],[Kolumn5]]),\"\")","v":""}]
[{"$nulls":6},"",null,{"$f":"IF(SUM(Tabell1[[#This Row],[Kolumn2]]*Tabell1[[#This Row],[Kolumn3]],Tabell1[[#This Row],[Kolumn5]])>0,SUM(Tabell1[[#This Row],[Kolumn2]]*Tabell1[[#This Row],[Kolumn3]],Tabell1[[#This Row],[Kolumn5]]),\"\")","v":""}]
[{"$nulls":6},"",null,{"$f":"IF(SUM(Tabell1[[#This Row],[Kolumn2]]*Tabell1[[#This Row],[Kolumn3]],Tabell1[[#This Row],[Kolumn5]])>0,SUM(Tabell1[[#This Row],[Kolumn2]]*Tabell1[[#This Row],[Kolumn3]],Tabell1[[#This Row],[Kolumn5]]),\"\")","v":""}]
[{"$nulls":6},"",null,{"$f":"IF(SUM(Tabell1[[#This Row],[Kolumn2]]*Tabell1[[#This Row],[Kolumn3]],Tabell1[[#This Row],[Kolumn5]])>0,SUM(Tabell1[[#This Row],[Kolumn2]]*Tabell1[[#This Row],[Kolumn3]],Tabell1[[#This Row],[Kolumn5]]),\"\")","v":""}]
[{"$nulls":6},"",null,{"$f":"IF(SUM(Tabell1[[#This Row],[Kolumn2]]*Tabell1[[#This Row],[Kolumn3]],Tabell1[[#This Row],[Kolumn5]])>0,SUM(Tabell1[[#This Row],[Kolumn2]]*Tabell1[[#This Row],[Kolumn3]],Tabell1[[#This Row],[Kolumn5]]),\"\")","v":""}]
[{"$nulls":6},"",null,{"$f":"IF(SUM(Tabell1[[#This Row],[Kolumn2]]*Tabell1[[#This Row],[Kolumn3]],Tabell1[[#This Row],[Kolumn5]])>0,SUM(Tabell1[[#This Row],[Kolumn2]]*Tabell1[[#This Row],[Kolumn3]],Tabell1[[#This Row],[Kolumn5]]),\"\")","v":""}]
[{"$nulls":6},"",null,{"$f":"IF(SUM(Tabell1[[#This Row],[Kolumn2]]*Tabell1[[#This Row],[Kolumn3]],Tabell1[[#This Row],[Kolumn5]])>0,SUM(Tabell1[[#This Row],[Kolumn2]]*Tabell1[[#This Row],[Kolumn3]],Tabell1[[#This Row],[Kolumn5]]),\"\")","v":""}]
[{"$nulls":6},"",null,{"$f":"IF(SUM(Tabell1[[#This Row],[Kolumn2]]*Tabell1[[#This Row],[Kolumn3]],Tabell1[[#This Row],[Kolumn5]])>0,SUM(Tabell1[[#This Row],[Kolumn2]]*Tabell1[[#This Row],[Kolumn3]],Tabell1[[#This Row],[Kolumn5]]),\"\")","v":""}]
[{"$nulls":6},"",null,{"$f":"IF(SUM(Tabell1[[#This Row],[Kolumn2]]*Tabell1[[#This Row],[Kolumn3]],Tabell1[[#This Row],[Kolumn5]])>0,SUM(Tabell1[[#This Row],[Kolumn2]]*Tabell1[[#This Row],[Kolumn3]],Tabell1[[#This Row],[Kolumn5]]),\"\")","v":""}]
[{"$nulls":6},"Summa (exkl moms)",null,{"$f":"SUM(Tabell1[[#All],[Kolumn7]])-SUM(Tabell1[[#All],[Kolumn5]])","v":{"v":865,"d":"865.00"}}]
[{"$nulls":6},"Moms",null,{"$f":"SUM(Tabell1[[#All],[Kolumn5]])","v":186.25}]
[{"$nulls":6},"Att betala",null,{"$f":"SUM(Tabell1[[#All],[Kolumn7]])","v":{"v":1051.25,"d":"1,051.25"}}]
{"$rows_empty":21}
[null,null,"Mitt företag",null,"Orgnr",null,"BIC"]
[null,null,"Gatan 123"]
[null,null,"100 00 Stockholm"]
[null,null,"Telefon: 070- 123 123",null,"Momsreg nummer",null,"IBAN"]
[null,null,"E-post: info@mittforetag.se"]
[null,null,"Webb: www.mittforetag.se",{"$nulls":3},"Bankgiro",null,"Godkänd för F-skatt"]

{"sheet":"Moms","index":1,"n_rows":6,"n_cols":2,"rows_kept":6}
[]
[null,"Lista med momssatser"]
[null,{"v":0,"d":"0%"}]
[null,{"v":0.06,"d":"6%"}]
[null,{"v":0.12,"d":"12%"}]
[null,{"v":0.25,"d":"25%"}]